fUSD/lending_fUSD_20251109
["ID","MTS","AMOUNT","RATE_DAILY","PERIOD"]
[393461046,1762686658876,-1000.0,0.00017427,2]
[393461047,1762686658886,-2035.58674291,0.00017433,2]
[393461048,1762686658896,-500.0,0.0001744,2]
[393461049,1762686658904,-151.0,0.00017444,2]
[393461050,1762686658913,-151.0,0.00017444,2]
[393461051,1762686658922,-151.0,0.00017444,2]
[393461052,1762686658931,-151.0,0.00017444,2]
[393461053,1762686658941,-190.7792,0.00017444,2]
[393461054,1762686658949,-151.0,0.00017444,2]
[393461055,1762686658959,-151.0,0.00017444,2]
[393461056,1762686658969,-151.0,0.00017444,2]
[393461057,1762686658978,-170.222458,0.00017444,2]
[393461058,1762686658988,-151.0,0.00017444,2]
[393461059,1762686658997,-151.0,0.00017444,2]
[393461060,1762686659007,-151.0,0.00017444,2]
[393461061,1762686659016,-163.444605,0.00017444,2]
[393461062,1762686659026,-212.837481,0.00017444,2]
[393461063,1762686659035,-212.837481,0.00017444,2]
[393461064,1762686659044,-212.837481,0.00017444,2]
[393461065,1762686659054,-212.837474,0.00017444,2]
[393461066,1762686659063,-232.962515,0.00017444,2]
[393461067,1762686659073,-151.0,0.00017444,2]
[393461068,1762686659082,-151.0,0.00017444,2]
[393461069,1762686659091,-151.0,0.00017444,2]
[393461070,1762686659101,-151.0,0.00017444,2]
[393461071,1762686659111,-151.0,0.00017444,2]
[393461072,1762686659121,-151.0,0.00017444,2]
[393461073,1762686659131,-158.133195,0.00017444,2]
[393461074,1762686659141,-181.665505,0.00017444,2]
[393461075,1762686659150,-181.665505,0.00017444,2]
[393461076,1762686659160,-181.665505,0.00017444,2]
[393461077,1762686659170,-181.665511,0.00017444,2]
[393461078,1762686659180,-161.232217,0.00017444,2]
[393461079,1762686659190,-1386.0,0.00017457,2]
[393461080,1762686659200,-1680.0,0.00017469,2]
[393461081,1762686659209,-166.66,0.0001747,2]
[393461082,1762686659219,-1386.0,0.00017471,2]
[393461083,1762686659229,-362.35316154,0.00017481,2]
[393461084,1762686659238,-151.0,0.00017489,2]
[393461085,1762686659249,-151.0,0.00017489,2]
[393461086,1762686659262,-296.193594,0.00017489,2]
[393461087,1762686659272,-1000.0,0.0001749,2]
[393461088,1762686659281,-787.99,0.00017493,2]
[393461089,1762686659291,-150.0,0.000175,2]
[393461090,1762686659300,-150.0,0.000175,2]
[393461091,1762686659309,-200.0,0.000175,2]
[393461092,1762686659319,-150.0,0.000175,2]
[393461093,1762686659328,-150.0,0.000175,2]
[393461094,1762686659337,-151.17577208,0.000175,2]
[393461095,1762686659347,-150.0,0.000175,2]
[393461096,1762686659356,-150.0,0.000175,2]
[393461097,1762686659365,-2000.0,0.000175,2]
[393461098,1762686659376,-1000.0,0.00017529,2]
[393461099,1762686659386,-413.60681259,0.00017533,2]
[393461100,1762686659396,-500.0,0.00017563,2]
[393461101,1762686659406,-590.60868666,0.00017563,2]
[393461102,1762686659415,-1000.0,0.00017564,2]
[393461103,1762686659424,-350.0,0.00017595,2]
[393461104,1762686659434,-1000.0,0.00017596,2]
[393461105,1762686659443,-293.93741336,0.00017608,2]
[393461106,1762686659453,-1000.0,0.0001762,2]
[393461107,1762686659462,-165.00252836,0.00017623,2]
[393461108,1762686659472,-1386.0,0.00017626,2]
[393461109,1762686659481,-163.282938,0.00017628,2]
[393461110,1762686659491,-151.0,0.00017628,2]
[393461111,1762686659500,-151.0,0.00017628,2]
[393461112,1762686659509,-153.618254,0.00017628,2]
[393461113,1762686659519,-153.618254,0.00017628,2]
[393461114,1762686659528,-153.618254,0.00017628,2]
[393461115,1762686659538,-153.618254,0.00017628,2]
[393461116,1762686659547,-166.66,0.00017634,2]
[393461117,1762686659557,-202.0179959,0.00017637,2]
[393461118,1762686659567,-202.51756382,0.00017637,2]
[393461119,1762686659576,-200.0,0.00017637,2]
[393461120,1762686659586,-150.0,0.00017637,2]
[393461121,1762686659596,-150.0,0.00017637,2]
[393461122,1762686659605,-200.0,0.00017637,2]
[393461123,1762686659615,-350.0,0.00017637,2]
[393461124,1762686659625,-1000.0,0.00017646,2]
[393461125,1762686659637,-4170.0,0.00017647,2]
[393461126,1762686659647,-451.41,0.00017659,2]
[393461127,1762686659657,-150.0,0.0001766,2]
[393461128,1762686659666,-2035.58674291,0.00017667,2]
[393461129,1762686659677,-1000.0,0.00017672,2]
[393461130,1762686659686,-150.0,0.00017675,2]
[393461131,1762686659696,-151.6,0.00017681,2]
[393461132,1762686659705,-1663.644,0.00017681,2]
[393461133,1762686659716,-150.0,0.00017684,2]
[393461134,1762686659726,-362.35316154,0.00017691,2]
[393461135,1762686659735,-500.0,0.000177,2]
[393461136,1762686659745,-350.0,0.000177,2]
[393461137,1762686659754,-1000.0,0.00017707,2]
[393461138,1762686659763,-1386.0,0.00017711,2]
[393461139,1762686659772,-1386.0,0.00017712,2]
[393461140,1762686659782,-1000.0,0.00017725,2]
[393461141,1762686659791,-1386.0,0.00017759,2]
[393461142,1762686659800,-787.99,0.00017767,2]
[393461143,1762686659810,-2500.0,0.00017768,3]
[393461144,1762686659819,-350.0,0.00017772,2]
[393461145,1762686659829,-1000.0,0.00017773,2]
[393461146,1762686659839,-150.0,0.00017774,2]
[393461147,1762686659848,-150.0,0.00017774,2]
[393461148,1762686659857,-2500.0,0.00017777,3]
[393461149,1762686659868,-2500.0,0.00017777,3]
[393461150,1762686659877,-2500.0,0.00017786,3]
[393461151,1762686659889,-2500.0,0.00017786,3]
[393461152,1762686659898,-2500.0,0.00017794,3]
[393461153,1762686659908,-2500.0,0.00017794,3]
[393461154,1762686659917,-150.0,0.00017797,2]
[393461155,1762686659927,-369.81,0.00017798,2]
[393461156,1762686659936,-1000.0,0.000178,2]
[393461157,1762686659945,-2500.0,0.00017803,3]
[393461158,1762686659956,-2500.0,0.00017803,3]
[393461159,1762686659964,-956.64000426,0.00017806,2]
[393461160,1762686659974,-150.0,0.00017808,2]
[393461161,1762686659983,-2500.0,0.00017812,3]
[393461162,1762686659993,-2500.0,0.00017812,3]
[393461163,1762686660002,-2500.0,0.00017812,3]
[393461164,1762686660011,-151.0,0.00017812,2]
[393461165,1762686660020,-161.098286,0.00017812,2]
[393461166,1762686660030,-156.767732,0.00017812,2]
[393461167,1762686660041,-2500.0,0.00017821,3]
[393461168,1762686660050,-2500.0,0.00017821,3]
[393461169,1762686660060,-2500.0,0.00017821,3]
[393461170,1762686660071,-2500.0,0.0001783,3]
[393461171,1762686660082,-2500.0,0.0001783,3]
[393461172,1762686660092,-2500.0,0.0001783,3]
[393461173,1762686660102,-500.0,0.00017837,2]
[393461174,1762686660112,-2500.0,0.00017838,3]
[393461175,1762686660122,-2500.0,0.00017838,3]
[393461176,1762686660132,-2500.0,0.00017838,3]
[393461177,1762686660142,-1000.0,0.00017844,2]
[393461178,1762686660151,-2500.0,0.00017847,3]
[393461179,1762686660161,-2500.0,0.00017847,3]
[393461180,1762686660171,-2500.0,0.00017847,3]
[393461181,1762686660181,-2500.0,0.00017856,3]
[393461182,1762686660190,-2500.0,0.00017856,3]
[393461183,1762686660284,-2500.0,0.00017856,3]
[393461184,1762686660307,-2500.0,0.00017865,3]
[393461185,1762686660316,-2500.0,0.00017865,3]
[393461186,1762686660326,-2500.0,0.00017865,3]
[393461187,1762686660336,-1000.0,0.0001787,2]
[393461188,1762686660346,-1000.0,0.00017871,2]
[393461189,1762686660355,-2500.0,0.00017874,3]
[393461190,1762686660365,-2500.0,0.00017874,3]
[393461191,1762686660374,-2500.0,0.00017874,3]
[393461192,1762686660385,-2500.0,0.00017874,3]
[393461193,1762686660395,-151.0,0.00017874,2]
[393461194,1762686660404,-151.0,0.00017874,2]
[393461195,1762686660414,-207.548897,0.00017874,2]
[393461196,1762686660423,-151.0,0.00017882,2]
[393461197,1762686660433,-151.0,0.00017882,2]
[393461198,1762686660443,-151.0,0.00017882,2]
[393461199,1762686660452,-153.618254,0.00017882,2]
[393461200,1762686660462,-153.618254,0.00017882,2]
[393461201,1762686660471,-153.618254,0.00017882,2]
[393461202,1762686660481,-153.61825,0.00017882,2]
[393461203,1762686660490,-2500.0,0.00017882,3]
[393461204,1762686660500,-2500.0,0.00017882,3]
[393461205,1762686660509,-2500.0,0.00017882,3]
[393461206,1762686660518,-2500.0,0.00017882,3]
[393461207,1762686660527,-2500.0,0.00017891,3]
[393461208,1762686660538,-2500.0,0.00017891,3]
[393461209,1762686660547,-2500.0,0.00017891,3]
[393461210,1762686660556,-2500.0,0.00017891,3]
[393461211,1762686660565,-1000.0,0.00017892,2]
[393461212,1762686660575,-2500.0,0.000179,3]
[393461213,1762686660584,-478.20968403,0.000179,3]
[393461214,1762686660594,-2500.0,0.000179,3]
[393461215,1762686660603,-2500.0,0.000179,3]
[393461216,1762686660612,-478.20968403,0.000179,3]
[393461217,1762686660621,-2500.0,0.000179,3]
[393461218,1762686660633,-2035.58674291,0.000179,2]
[393461219,1762686660647,-362.35316154,0.000179,2]
[393461220,1762686660655,-293.93741336,0.000179,2]
[393461221,1762686660665,-165.00252836,0.000179,2]
[393461222,1762686660677,-190.10232692,0.000179,3]
[393461223,1762686660686,-155.879154,0.000179,2]
[393461224,1762686660695,-524.43969462,0.000179,2]
[393461225,1762686660705,-312.87876111,0.000179,2]
[393461226,1762686660715,-4170.0,0.00017908,2]
[393461227,1762686660724,-300.0,0.00017909,2]
[393461228,1762686660733,-250.0,0.00017911,2]
[393461229,1762686660742,-250.0,0.00017911,2]
[393461230,1762686660751,-150.0,0.00017945,2]
[393461231,1762686660761,-350.0,0.00017966,2]
[393461232,1762686660770,-1000.0,0.00017967,2]
[393461233,1762686660779,-500.0,0.00017974,2]
[393461234,1762686660789,-255.31,0.0001798,3]
[393461235,1762686660798,-6997.0,0.00017989,2]
[393461236,1762686660807,-15408.2449459,0.00017999,2]
[393461237,1762686660816,-928.31,0.00018,7]
[393461238,1762686660826,-5087975.36800513,0.00018,2]
[393461239,1762686661036,-263.971098,0.00016945,2]
[393461240,1762686661046,-385.116042,0.00018,2]
[393461241,1762686661244,-151.0,0.00016604,2]
[393461242,1762686661254,-143595.92607324,0.00018,2]
[393461243,1762686661439,-612.89285183,0.00016943,2]
[393461244,1762686661450,-275.35504252,0.00016943,2]
[393461250,1762687189972,-492.26389069,0.0001555,2]
[393461251,1762687190004,-195.0,0.00015625,2]
[393461252,1762687190035,-195.0,0.0001565,2]
[393461253,1762687190063,-326.11784544,0.000157,2]
[393461254,1762687190093,-154.53307574,0.000157,2]
[393461255,1762687190121,-1000.0,0.000157,2]
[393461256,1762687190148,-2500.0,0.000157,2]
[393461257,1762687190177,-16.98513957,0.000157,2]
[393461258,1762687190189,-240.21009712,0.000157,2]
[393461259,1762687190199,-250.0,0.00015728,2]
[393461260,1762687190208,-2.05379357,0.00015756,2]
[393461261,1762687190220,-195.0,0.00015756,2]
[393461262,1762687190235,-2.94620643,0.00015756,2]
[393461263,1762687190244,-192.05379357,0.00015767,2]
[393461264,1762687190255,-57.94620643,0.00015767,2]
[393461265,1762687190264,-268.17163901,0.00015773,2]
[393461266,1762687190290,-154.53307574,0.00015773,2]
[393461267,1762687190302,-77.29528525,0.00015773,2]
[393461268,1762687190311,-524.46659852,0.00015773,2]
[393461269,1762687190320,-316.84179746,0.00015799,2]
[393461270,1762687190330,-81.39631877,0.00015799,2]
[393461271,1762687190341,-1118.60368123,0.00015799,2]
[393461272,1762687190350,-300.0,0.00015799,2]
[393461273,1762687190359,-300.0,0.00015799,2]
[393461274,1762687190369,-500.0,0.00015799,2]
[393461275,1762687190378,-281.39631877,0.00015799,2]
[393461276,1762687190389,-218.60368123,0.00015799,2]
[393461277,1762687190399,-38.59155546,0.00015799,2]
[393461278,1762687190435,-598.99243804,0.00015799,2]
[393461279,1762687190471,-598.99243804,0.000158,2]
[393461280,1762687190492,-8802.02512392,0.000158,2]
[393461281,1762687190510,-10000.01,0.000158,2]
[393461282,1762687190521,-10000.01,0.000158,2]
[393461283,1762687190576,-10000.01,0.000158,2]
[393461284,1762687190680,-10000.01,0.000158,2]
[393461285,1762687190785,-10000.01,0.000158,2]
[393461286,1762687190913,-10000.01,0.000158,2]
[393461287,1762687191053,-10000.01,0.000158,2]
[393461288,1762687191157,-10000.01,0.000158,2]
[393461289,1762687207914,-206.26953728,0.000156,2]
[393461290,1762687207943,-361.43761825,0.0001565,2]
[393461291,1762687207973,-195.0,0.0001565,2]
[393461292,1762687208001,-3848.471,0.000157,2]
[393461293,1762687208030,-277.65368894,0.00015773,2]
[393461295,1762687213941,-222.34631106,0.00015773,2]
[393461296,1762687213970,-214.90537102,0.00015773,2]
[393461297,1762687213999,-1200.0,0.00015799,2]
[393461298,1762687214027,-300.0,0.00015799,2]
[393461299,1762687214057,-300.0,0.00015799,2]
[393461300,1762687214086,-300.0,0.00015799,2]
[393461301,1762687220001,-234.4396,0.000157,2]
[393461302,1762687220031,-500.0,0.00015773,2]
[393461303,1762687220059,-307.1434438,0.00015799,2]
[393461304,1762687220138,-7616.8439124,0.000158,2]
[393461305,1762687249966,155.15807978,0.00039158,60]
[393461306,1762687271335,553.22421264,0.00039158,120]
[393461307,1762687320360,622.73543843,0.00039158,120]
[393461308,1762687320445,500.0,0.00039158,120]
[393461309,1762687320692,500.0,0.00039158,120]
[393461310,1762687320941,500.0,0.00039158,120]
[393461311,1762687321189,500.0,0.00039158,120]
[393461312,1762687321417,453.44,0.00039158,120]
[393461313,1762687323514,286.22153829,0.00039158,120]
[393461314,1762687325643,638.21893161,0.00039158,120]
[393461315,1762687326352,238.16328849,0.00039158,120]
[393461316,1762687326617,151.0,0.00039158,120]
[393461317,1762687327253,151.0,0.00039158,120]
[393461318,1762687327893,151.0,0.00039158,120]
[393461319,1762687328203,263.21374862,0.00039158,120]
[393461320,1762687328286,250.0,0.00039158,120]
[393461321,1762687328513,151.0,0.00039158,120]
[393461322,1762687328930,250.0,0.00039158,120]
[393461323,1762687329172,151.0,0.00039158,120]
[393461324,1762687329530,250.0,0.00039158,120]
[393461325,1762687329610,500.0,0.00039158,120]
[393461326,1762687329783,151.0,0.00039158,120]
[393461327,1762687329838,500.0,0.00039158,120]
[393461328,1762687330236,250.0,0.00039158,120]
[393461329,1762687330287,500.0,0.00039158,120]
[393461330,1762687330412,151.0,0.00039158,120]
[393461331,1762687330662,507.26225743,0.00039158,120]
[393461332,1762687330873,250.0,0.00039158,120]
[393461333,1762687331062,500.0,0.00039158,120]
[393461334,1762687331119,500.0,0.00039158,120]
[393461335,1762687331173,151.0,0.00039158,120]
[393461336,1762687331236,414.0,0.00039158,120]
[393461337,1762687331466,250.0,0.00039158,120]
[393461338,1762687331519,500.0,0.00039158,120]
[393461339,1762687331577,500.0,0.00039158,120]
[393461340,1762687331748,151.0,0.00039158,120]
[393461341,1762687331796,429.318,0.00039158,120]
[393461342,1762687332080,500.0,0.00039158,120]
[393461343,1762687332147,250.0,0.00039158,120]
[393461344,1762687332210,500.0,0.00039158,120]
[393461345,1762687332369,151.0,0.00039158,120]
[393461346,1762687332483,445.202766,0.00039158,120]
[393461347,1762687332691,500.0,0.00039158,120]
[393461348,1762687332840,250.0,0.00039158,120]
[393461349,1762687332975,151.0,0.00039158,120]
[393461350,1762687333066,461.67526834,0.00039158,120]
[393461351,1762687333375,500.0,0.00039158,120]
[393461352,1762687333576,151.0,0.00039158,120]
[393461353,1762687333628,355.2643824,0.00039158,120]
[393461354,1762687333921,250.0,0.00039158,120]
[393461355,1762687334070,500.0,0.00039158,120]
[393461356,1762687334375,151.0,0.00039158,120]
[393461357,1762687334571,250.0,0.00039158,120]
[393461358,1762687334921,151.0,0.00039158,120]
[393461359,1762687335212,250.0,0.00039158,120]
[393461360,1762687335262,2408.88,0.00039158,120]
[393461361,1762687335551,151.0,0.00039158,120]
[393461362,1762687335723,2408.88,0.00039158,120]
[393461363,1762687335973,2408.88,0.00039158,120]
[393461364,1762687336217,2408.88,0.00039158,120]
[393461365,1762687336313,151.0,0.00039158,120]
[393461366,1762687336443,2408.88,0.00039158,120]
[393461367,1762687336669,2408.88,0.00039158,120]
[393461368,1762687336912,2408.88,0.00039158,120]
[393461369,1762687336997,151.0,0.00039158,120]
[393461370,1762687337145,2408.88,0.00039158,120]
[393461371,1762687337393,2408.88,0.00039158,120]
[393461372,1762687337658,151.0,0.00039158,120]
[393461373,1762687337704,2408.88,0.00039158,120]
[393461374,1762687337869,2408.88,0.00039158,120]
[393461375,1762687338101,2408.88,0.00039158,120]
[393461376,1762687338287,151.0,0.00039158,120]
[393461377,1762687338339,2408.88,0.00039158,120]
[393461378,1762687338597,2408.88,0.00039158,120]
[393461379,1762687338832,2408.88,0.00039158,120]
[393461380,1762687339076,2408.88,0.00039158,120]
[393461381,1762687339416,2408.88,0.00039158,120]
[393461382,1762687339709,2408.88,0.00039158,120]
[393461383,1762687339904,2408.88,0.00039158,120]
[393461384,1762687340123,2408.88,0.00039158,120]
[393461385,1762687340405,2408.88,0.00039158,120]
[393461386,1762687340652,2408.88,0.00039158,120]
[393461387,1762687340887,2408.88,0.00039158,120]
[393461388,1762687341026,289.34124632,0.00039158,120]
[393461389,1762687341125,2408.9,0.00039158,120]
[393461390,1762687346560,500.0,0.00039158,120]
[393461391,1762687347164,500.0,0.00039158,120]
[393461392,1762687347877,500.0,0.00039158,120]
[393461393,1762687348474,500.0,0.00039158,120]
[393461394,1762687349090,500.0,0.00039158,120]
[393461395,1762687349657,460.0,0.00039158,120]
[393461396,1762687349771,500.0,0.00039158,120]
[393461397,1762687349818,500.0,0.00039158,120]
[393461398,1762687350028,500.0,0.00039158,120]
[393461399,1762687350263,500.0,0.00039158,120]
[393461400,1762687350633,500.0,0.00039158,120]
[393461401,1762687350943,500.0,0.00039158,120]
[393461402,1762687351204,500.0,0.00039158,120]
[393461403,1762687351441,255.58645299,0.00039158,120]
[393461404,1762687352790,500.0,0.00039158,120]
[393461405,1762687353029,603.13534322,0.00039158,120]
[393461406,1762687354101,601.67341888,0.00039158,120]
[393461407,1762687360407,479.49553322,0.00039199,120]
[393461408,1762687360460,500.0,0.00039199,120]
[393461409,1762687360790,500.0,0.00039199,120]
[393461410,1762687360841,500.0,0.00039199,120]
[393461411,1762687361022,473.15155806,0.00039199,120]
[393461412,1762687361072,500.0,0.00039199,120]
[393461413,1762687361291,500.0,0.00039199,120]
[393461414,1762687361520,500.0,0.00039199,120]
[393461415,1762687361777,337.73156736,0.00039199,120]
[393461416,1762687362353,434.84640001,0.00039199,120]
[393461417,1762687362599,500.0,0.00039199,120]
[393461418,1762687362834,607.72402924,0.00039199,120]
[393461419,1762687387621,500.0,0.00039199,120]
[393461420,1762687387855,500.0,0.00039199,120]
[393461421,1762687388097,401.32774192,0.00039199,120]
[393461422,1762687418235,500.0,0.00039199,120]
[393461423,1762687418459,500.0,0.00039199,120]
[393461424,1762687418777,500.0,0.00039199,120]
[393461425,1762687419023,500.0,0.00039199,120]
[393461426,1762687419265,500.0,0.00039199,120]
[393461427,1762687419508,500.0,0.00039199,120]
[393461428,1762687419762,500.0,0.00039199,120]
[393461429,1762687419988,500.0,0.00039199,120]
[393461430,1762687420237,500.0,0.00039199,120]
[393461431,1762687420465,500.0,0.00039199,120]
[393461432,1762687420690,500.0,0.00039199,120]
[393461433,1762687420920,500.0,0.00039199,120]
[393461434,1762687421205,500.0,0.00039199,120]
[393461435,1762687421434,500.0,0.00039199,120]
[393461436,1762687421616,500.0,0.00039199,120]
[393461437,1762687421661,500.0,0.00039199,120]
[393461438,1762687421841,500.0,0.00039199,120]
[393461439,1762687421895,500.0,0.00039199,120]
[393461440,1762687422085,606.71657768,0.00039199,120]
[393461441,1762687422143,500.0,0.00039199,120]
[393461442,1762687422409,500.0,0.00039199,120]
[393461443,1762687422657,500.0,0.00039199,120]
[393461444,1762687422903,253.42,0.00039199,120]
[393461445,1762687427037,900.0,0.000159,5]
[393461446,1762687441219,449.66065005,0.00039199,120]
[393461447,1762687464843,500.0,0.00039199,120]
[393461448,1762687465065,500.0,0.00039199,120]
[393461449,1762687465197,256.52,0.00039199,60]
[393461450,1762687465297,500.0,0.00039199,120]
[393461451,1762687465521,500.0,0.00039199,120]
[393461452,1762687465745,500.0,0.00039199,120]
[393461453,1762687465982,500.0,0.00039199,120]
[393461454,1762687471244,500.0,0.00039199,120]
[393461455,1762687471485,500.0,0.00039199,120]
[393461456,1762687471736,500.0,0.00039199,120]
[393461457,1762687471979,500.0,0.00039199,120]
[393461458,1762687472227,441.35919668,0.00039199,120]
[393461459,1762687476907,2000.0,0.00039199,120]
[393461460,1762687480951,500.0,0.00039199,120]
[393461461,1762687481179,530.18,0.00039199,120]
[393461462,1762687488681,500.0,0.00039199,120]
[393461463,1762687488965,500.0,0.00039199,120]
[393461464,1762687489323,500.0,0.00039199,120]
[393461465,1762687489938,500.0,0.00039199,120]
[393461466,1762687490255,394.88909766,0.00039199,120]
[393461467,1762687491000,500.0,0.00039199,120]
[393461468,1762687491403,500.0,0.00039199,120]
[393461469,1762687491649,352.00850394,0.00039199,120]
[393461470,1762687492012,500.0,0.00039199,120]
[393461471,1762687492264,500.0,0.00039199,120]
[393461472,1762687492497,500.0,0.00039199,120]
[393461473,1762687492764,500.0,0.00039199,120]
[393461474,1762687493019,500.0,0.00039199,120]
[393461475,1762687493248,500.0,0.00039199,120]
[393461476,1762687493377,500.0,0.00039199,120]
[393461477,1762687493520,500.0,0.00039199,120]
[393461478,1762687493616,500.0,0.00039199,120]
[393461479,1762687493745,500.0,0.00039199,120]
[393461480,1762687493863,500.0,0.00039199,120]
[393461481,1762687493973,500.0,0.00039199,120]
[393461482,1762687494115,500.0,0.00039199,120]
[393461483,1762687494169,209.22913863,0.00039199,120]
[393461484,1762687494245,500.0,0.00039199,120]
[393461485,1762687494343,500.0,0.00039199,120]
[393461486,1762687494476,500.0,0.00039199,120]
[393461487,1762687494574,588.7515671,0.00039199,120]
[393461488,1762687494725,500.0,0.00039199,120]
[393461489,1762687494959,500.0,0.00039199,120]
[393461490,1762687495186,500.0,0.00039199,120]
[393461491,1762687495419,500.0,0.00039199,120]
[393461492,1762687495649,500.0,0.00039199,120]
[393461493,1762687495890,430.84791305,0.00039199,120]
[393461494,1762687496402,500.0,0.00039199,120]
[393461495,1762687496638,557.18291072,0.00039199,120]
[393461496,1762687498214,584.95910168,0.00039199,120]
[393461497,1762687498556,468.76770532,0.00039199,120]
[393461498,1762687498758,500.0,0.00039199,120]
[393461499,1762687498996,420.0,0.00039199,120]
[393461500,1762687500456,482.3815352,0.00039199,120]
[393461501,1762687501227,500.0,0.00039199,120]
[393461502,1762687501637,500.0,0.00039199,120]
[393461503,1762687501924,642.96055455,0.00039199,120]
[393461504,1762687502264,481.72392957,0.00039199,120]
[393461505,1762687502814,500.0,0.00039199,120]
[393461506,1762687503054,500.0,0.00039199,120]
[393461507,1762687503295,500.0,0.00039199,120]
[393461508,1762687503533,500.0,0.00039199,120]
[393461509,1762687503626,460.0,0.00039199,120]
[393461510,1762687503792,500.0,0.00039199,120]
[393461511,1762687504030,260.0,0.00039199,120]
[393461512,1762687504209,500.0,0.00039199,120]
[393461513,1762687504535,469.70065152,0.00039199,120]
[393461514,1762687504900,465.9408462,0.00039199,120]
[393461515,1762687506462,460.0,0.00039199,120]
[393461516,1762687508028,460.0,0.00039199,120]
[393461517,1762687508417,629.67337935,0.00039199,120]
[393461518,1762687509036,500.0,0.00039199,120]
[393461519,1762687509279,500.0,0.00039199,120]
[393461520,1762687509502,500.0,0.00039199,120]
[393461521,1762687509750,500.0,0.00039199,120]
[393461522,1762687509970,500.0,0.00039199,120]
[393461523,1762687510054,517.76039219,0.00039199,120]
[393461524,1762687510363,500.0,0.00039199,120]
[393461525,1762687510466,500.0,0.00039199,120]
[393461526,1762687510673,522.74607399,0.00039199,120]
[393461527,1762687511073,690.42,0.00039199,120]
[393461528,1762687511314,690.42,0.00039199,120]
[393461529,1762687511379,434.32495864,0.00039199,120]
[393461530,1762687511539,690.42,0.00039199,120]
[393461531,1762687511868,690.42,0.00039199,120]
[393461532,1762687511936,498.39228746,0.00039199,120]
[393461533,1762687512026,690.42,0.00039199,120]
[393461534,1762687512258,690.42,0.00039199,120]
[393461535,1762687512480,690.42,0.00039199,120]
[393461536,1762687512708,690.42,0.00039199,120]
[393461537,1762687512967,690.42,0.00039199,120]
[393461538,1762687513189,690.42,0.00039199,120]
[393461539,1762687513492,690.42,0.00039199,120]
[393461540,1762687513738,690.42,0.00039199,120]
[393461541,1762687514143,497.41508326,0.00039199,120]
[393461542,1762687514325,690.42,0.00039199,120]
[393461543,1762687514378,500.0,0.00039199,120]
[393461544,1762687514492,506.62797027,0.00039199,120]
[393461545,1762687514560,690.42,0.00039199,120]
[393461546,1762687514683,500.0,0.00039199,120]
[393461547,1762687514796,690.42,0.00039199,120]
[393461548,1762687514935,500.0,0.00039199,120]
[393461549,1762687515018,690.42,0.00039199,120]
[393461550,1762687515172,500.0,0.00039199,120]
[393461551,1762687515260,690.42,0.00039199,120]